fUSD/lending_fUSD_20251206
["ID","MTS","AMOUNT","RATE_DAILY","PERIOD"]
[396587630,1765061445829,-500.0,0.00016438,2]
[396587631,1765061445839,-500.0,0.00016438,2]
[396587632,1765061445848,-500.0,0.00016438,2]
[396587633,1765061445858,-500.0,0.00016438,2]
[396587634,1765061445867,-542.05,0.00016438,2]
[396587635,1765061445877,-503.43284398,0.00016438,2]
[396587636,1765061445887,-500.0,0.00016438,2]
[396587637,1765061445897,-2497.96,0.00016438,2]
[396587638,1765061445906,-500.0,0.00016438,2]
[396587639,1765061445916,-532.45,0.00016438,2]
[396587640,1765061445926,-500.0,0.00016438,2]
[396587641,1765061445936,-500.0,0.00016438,2]
[396587642,1765061445946,-2516.86,0.00016438,2]
[396587643,1765061445956,-1666.74,0.00016438,2]
[396587644,1765061445966,-339.37940199,0.00016438,2]
[396587645,1765061445975,-500.0,0.00016438,2]
[396587646,1765061445986,-500.0,0.00016438,2]
[396587647,1765061445996,-2100.97,0.00016438,2]
[396587648,1765061446006,-500.0,0.00016438,2]
[396587649,1765061446016,-500.0,0.00016438,2]
[396587650,1765061446026,-500.0,0.00016438,2]
[396587651,1765061446039,-2274.95,0.00016438,2]
[396587652,1765061446050,-774.75,0.00016438,2]
[396587653,1765061446060,-500.0,0.00016438,2]
[396587654,1765061446071,-500.0,0.00016438,2]
[396587655,1765061446082,-500.0,0.00016438,2]
[396587656,1765061446095,-500.0,0.00016438,2]
[396587657,1765061446106,-500.0,0.00016438,2]
[396587658,1765061446116,-609.89,0.00016438,2]
[396587659,1765061446127,-150.655292,0.00016438,2]
[396587660,1765061446137,-500.0,0.00016438,2]
[396587661,1765061446147,-2038.16,0.00016438,2]
[396587662,1765061446157,-150.655292,0.00016438,2]
[396587663,1765061446168,-150.655292,0.00016438,2]
[396587664,1765061446180,-500.0,0.00016438,2]
[396587665,1765061446190,-150.655292,0.00016438,2]
[396587666,1765061446200,-150.655292,0.00016438,2]
[396587667,1765061446211,-150.655292,0.00016438,2]
[396587668,1765061446222,-500.0,0.00016438,2]
[396587669,1765061446233,-150.655292,0.00016438,2]
[396587671,1765061446252,-150.655292,0.00016438,2]
[396587672,1765061446267,-150.655292,0.00016438,2]
[396587673,1765061446277,-150.655292,0.00016438,2]
[396587674,1765061446288,-634.94975894,0.00016438,2]
[396587675,1765061446300,-500.0,0.00016438,2]
[396587676,1765061446310,-500.0,0.00016438,2]
[396587677,1765061446321,-2149.73,0.00016438,2]
[396587678,1765061446332,-500.0,0.00016438,2]
[396587679,1765061446342,-500.0,0.00016438,2]
[396587680,1765061446353,-6934.02081589,0.00016438,2]
[396587681,1765061446860,-1430.72,0.00016438,2]
[396587682,1765061446883,-276.51918411,0.00016438,2]
[396587683,1765061446893,-517.14,0.00016438,2]
[396587684,1765061446902,-500.0,0.00016438,2]
[396587685,1765061446912,-502.23095657,0.00016438,2]
[396587686,1765061446922,-2428.29,0.00016438,2]
[396587687,1765061446931,-500.0,0.00016438,2]
[396587688,1765061446941,-500.0,0.00016438,2]
[396587689,1765061446951,-500.0,0.00016438,2]
[396587690,1765061446960,-500.0,0.00016438,2]
[396587691,1765061446970,-500.0,0.00016438,2]
[396587692,1765061446979,-634.50262351,0.00016438,2]
[396587693,1765061446989,-500.0,0.00016438,2]
[396587694,1765061446999,-500.0,0.00016438,2]
[396587695,1765061447008,-500.0,0.00016438,2]
[396587696,1765061447018,-660.78377347,0.00016438,2]
[396587697,1765061448069,-7703.43622653,0.00016438,2]
[396587698,1765061448079,-500.0,0.00016438,2]
[396587699,1765061448089,-500.99846131,0.00016438,2]
[396587700,1765061448098,-49.07509888,0.00016438,2]
[396587701,1765061448109,-954.96490112,0.00016438,2]
[396587702,1765061448119,-691.11,0.00016438,2]
[396587703,1765061448128,-500.0,0.00016438,2]
[396587704,1765061448138,-500.0,0.00016438,2]
[396587705,1765061448148,-500.0,0.00016438,2]
[396587706,1765061448157,-503.16846094,0.00016438,2]
[396587707,1765061448167,-500.0,0.00016438,2]
[396587708,1765061448175,-500.0,0.00016438,2]
[396587709,1765061448185,-609.14,0.00016438,2]
[396587710,1765061448194,-150.655292,0.00016438,2]
[396587711,1765061448203,-150.655292,0.00016438,2]
[396587712,1765061448213,-500.0,0.00016438,2]
[396587713,1765061448222,-647.3,0.00016438,2]
[396587714,1765061448230,-500.0,0.00016438,2]
[396587715,1765061448243,-150.655292,0.00016438,2]
[396587716,1765061448252,-1589.56955667,0.00016438,2]
[396587717,1765061448263,-586.27044333,0.00016438,2]
[396587718,1765061448273,-150.655292,0.00016438,2]
[396587719,1765061448283,-150.655292,0.00016438,2]
[396587720,1765061448291,-150.655292,0.00016438,2]
[396587721,1765061448300,-150.655292,0.00016438,2]
[396587722,1765061448310,-2450.64,0.00016438,2]
[396587723,1765061448320,-150.655292,0.00016438,2]
[396587724,1765061448329,-500.0,0.00016438,2]
[396587725,1765061448338,-150.655292,0.00016438,2]
[396587726,1765061448347,-150.655292,0.00016438,2]
[396587727,1765061448356,-500.0,0.00016438,2]
[396587728,1765061448365,-2375.42,0.00016438,2]
[396587729,1765061448374,-500.0,0.00016438,2]
[396587730,1765061448383,-500.0,0.00016438,2]
[396587731,1765061448392,-476.86637729,0.00016438,2]
[396587732,1765061448405,-790.07362271,0.00016438,2]
[396587733,1765061448414,-502.99925531,0.00016438,2]
[396587734,1765061448424,-505.72,0.00016438,2]
[396587735,1765061448432,-1854.1,0.00016438,2]
[396587736,1765061448441,-500.0,0.00016438,2]
[396587737,1765061448451,-503.77094397,0.00016438,2]
[396587738,1765061448460,-574.78,0.00016438,2]
[396587739,1765061448469,-500.0,0.00016438,2]
[396587740,1765061448480,-2508.19,0.00016438,2]
[396587741,1765061448489,-500.0,0.00016438,2]
[396587742,1765061448501,-337.91483953,0.00016438,2]
[396587743,1765061448514,-162.08516047,0.00016438,2]
[396587744,1765061448523,-500.0,0.00016438,2]
[396587745,1765061448532,-500.0,0.00016438,2]
[396587746,1765061448541,-502.03089373,0.00016438,2]
[396587747,1765061448550,-588.73,0.00016438,2]
[396587748,1765061448559,-500.0,0.00016438,2]
[396587749,1765061448568,-750.75,0.00016438,2]
[396587750,1765061448577,-502.40038541,0.00016438,2]
[396587751,1765061448587,-500.0,0.00016438,2]
[396587752,1765061448596,-500.0,0.00016438,2]
[396587753,1765061448605,-1388.33,0.00016438,2]
[396587754,1765061448614,-500.0,0.00016438,2]
[396587755,1765061448624,-500.0,0.00016438,2]
[396587756,1765061448633,-1549.51379528,0.00016438,2]
[396587757,1765061448644,-800.90620472,0.00016438,2]
[396587758,1765061448653,-500.0,0.00016438,2]
[396587759,1765061448663,-346.90278261,0.00016438,2]
[396587760,1765061448679,-153.09721739,0.00016438,2]
[396587761,1765061448688,-500.0,0.00016438,2]
[396587762,1765061448697,-500.0,0.00016438,2]
[396587763,1765061448707,-500.0,0.00016438,2]
[396587764,1765061448716,-2243.77,0.00016438,2]
[396587765,1765061448725,-2255.38,0.00016438,2]
[396587766,1765061448734,-664.48,0.00016438,2]
[396587767,1765061448743,-501.39823329,0.00016438,2]
[396587768,1765061448753,-1719.2,0.00016438,2]
[396587769,1765061448762,-2667.17,0.00016438,2]
[396587770,1765061448771,-500.0,0.00016438,2]
[396587771,1765061448781,-500.0,0.00016438,2]
[396587772,1765061448790,-500.0,0.00016438,2]
[396587773,1765061448799,-500.0,0.00016438,2]
[396587774,1765061448808,-500.0,0.00016438,2]
[396587775,1765061448818,-660.39,0.00016438,2]
[396587776,1765061448827,-714.75,0.00016438,2]
[396587777,1765061448836,-2586.18,0.00016438,2]
[396587778,1765061448845,-500.0,0.00016438,2]
[396587779,1765061448854,-500.0,0.00016438,2]
[396587780,1765061448863,-500.0,0.00016438,2]
[396587781,1765061448871,-507.65,0.00016438,2]
[396587782,1765061448880,-500.0,0.00016438,2]
[396587783,1765061448889,-500.0,0.00016438,2]
[396587784,1765061448898,-838.74,0.00016438,2]
[396587785,1765061448907,-2331.91,0.00016438,2]
[396587786,1765061448915,-500.0,0.00016438,2]
[396587787,1765061448924,-502.4043925,0.00016438,2]
[396587788,1765061448933,-555.82,0.00016438,2]
[396587789,1765061448942,-686.88,0.00016438,2]
[396587790,1765061448951,-500.0,0.00016438,2]
[396587791,1765061448960,-682.59,0.00016438,2]
[396587792,1765061448968,-500.0,0.00016438,2]
[396587793,1765061448977,-500.0,0.00016438,2]
[396587794,1765061448987,-500.0,0.00016438,2]
[396587795,1765061448995,-500.0,0.00016438,2]
[396587796,1765061449004,-572.92061823,0.00016438,2]
[396587797,1765061449013,-150.655292,0.00016438,2]
[396587798,1765061449023,-150.655292,0.00016438,2]
[396587799,1765061449032,-150.655292,0.00016438,2]
[396587800,1765061449041,-150.655292,0.00016438,2]
[396587801,1765061449050,-150.655292,0.00016438,2]
[396587802,1765061449059,-150.655292,0.00016438,2]
[396587803,1765061449068,-150.655292,0.00016438,2]
[396587804,1765061449077,-500.0,0.00016438,2]
[396587805,1765061449087,-150.655292,0.00016438,2]
[396587806,1765061449097,-150.655292,0.00016438,2]
[396587807,1765061449105,-501.01499024,0.00016438,2]
[396587808,1765061449114,-150.655292,0.00016438,2]
[396587809,1765061449125,-500.0,0.00016438,2]
[396587810,1765061449133,-500.0,0.00016438,2]
[396587811,1765061449142,-500.0,0.00016438,2]
[396587812,1765061449151,-811.21,0.00016438,2]
[396587813,1765061449160,-500.0,0.00016438,2]
[396587814,1765061449168,-500.0,0.00016438,2]
[396587815,1765061449178,-500.0,0.00016438,2]
[396587816,1765061449188,-500.0,0.00016438,2]
[396587817,1765061449198,-1544.71,0.00016438,2]
[396587818,1765061449207,-3279.64,0.00016438,2]
[396587819,1765061449217,-500.0,0.00016438,2]
[396587820,1765061449230,-500.0,0.00016438,2]
[396587821,1765061449244,-500.0,0.00016438,2]
[396587822,1765061449253,-500.0,0.00016438,2]
[396587823,1765061449265,-965.2,0.00016438,2]
[396587824,1765061449274,-154.39431703,0.00016438,2]
[396587825,1765061449283,-1896.3,0.00016438,2]
[396587826,1765061449292,-500.0,0.00016438,2]
[396587827,1765061449301,-500.0,0.00016438,2]
[396587828,1765061449311,-500.0,0.00016438,2]
[396587829,1765061449322,-632.79,0.00016438,2]
[396587830,1765061449332,-504.3241041,0.00016438,2]
[396587831,1765061449341,-674.36,0.00016438,2]
[396587832,1765061449350,-500.0,0.00016438,2]
[396587833,1765061449360,-500.0,0.00016438,2]
[396587834,1765061449370,-500.0,0.00016438,2]
[396587835,1765061449380,-3296.61,0.00016438,2]
[396587836,1765061449391,-500.0,0.00016438,2]
[396587837,1765061449400,-784.46,0.00016438,2]
[396587838,1765061449411,-500.0,0.00016438,2]
[396587839,1765061449420,-150.655292,0.00016438,2]
[396587840,1765061449431,-784.46,0.00016438,2]
[396587841,1765061449441,-704.87,0.00016438,2]
[396587842,1765061449450,-150.655292,0.00016438,2]
[396587843,1765061449458,-784.46,0.00016438,2]
[396587844,1765061449467,-500.0,0.00016438,2]
[396587845,1765061449476,-150.655292,0.00016438,2]
[396587846,1765061449485,-784.46,0.00016438,2]
[396587847,1765061449494,-784.46,0.00016438,2]
[396587848,1765061449504,-150.655292,0.00016438,2]
[396587849,1765061449512,-784.46,0.00016438,2]
[396587850,1765061449522,-500.0,0.00016438,2]
[396587851,1765061449533,-150.655292,0.00016438,2]
[396587852,1765061449544,-500.0,0.00016438,2]
[396587853,1765061449554,-2298.7,0.00016438,2]
[396587854,1765061449563,-150.655292,0.00016438,2]
[396587855,1765061449573,-208.91205399,0.00016438,2]
[396587856,1765061449583,-150.655292,0.00016438,2]
[396587857,1765061449592,-150.655292,0.00016438,2]
[396587858,1765061449601,-150.655292,0.00016438,2]
[396587859,1765061449611,-500.0,0.00016438,2]
[396587860,1765061449620,-150.655292,0.00016438,2]
[396587861,1765061449629,-500.0,0.00016438,2]
[396587862,1765061449639,-500.0,0.00016438,2]
[396587863,1765061449649,-500.0,0.00016438,2]
[396587864,1765061449660,-500.0,0.00016438,2]
[396587865,1765061449669,-500.0,0.00016438,2]
[396587866,1765061449679,-500.0,0.00016438,2]
[396587867,1765061449689,-534.27720199,0.00016438,2]
[396587868,1765061449699,-2326.24,0.00016438,2]
[396587869,1765061449708,-500.0,0.00016438,2]
[396587870,1765061449717,-500.0,0.00016438,2]
[396587871,1765061449727,-500.0,0.00016438,2]
[396587872,1765061449736,-1977.29,0.00016438,2]
[396587873,1765061449745,-828.26,0.00016438,2]
[396587874,1765061449754,-521.18,0.00016438,2]
[396587875,1765061449763,-500.0,0.00016438,2]
[396587876,1765061449773,-500.0,0.00016438,2]
[396587877,1765061449783,-500.0,0.00016438,2]
[396587878,1765061449792,-500.0,0.00016438,2]
[396587879,1765061449801,-500.0,0.00016438,2]
[396587880,1765061449811,-2183.97,0.00016438,2]
[396587881,1765061449821,-150.655292,0.00016438,2]
[396587882,1765061449830,-500.0,0.00016438,2]
[396587883,1765061449839,-150.655292,0.00016438,2]
[396587884,1765061449849,-500.0,0.00016438,2]
[396587885,1765061449859,-150.655292,0.00016438,2]
[396587886,1765061449869,-500.0,0.00016438,2]
[396587887,1765061449878,-150.655292,0.00016438,2]
[396587888,1765061449888,-500.0,0.00016438,2]
[396587889,1765061449899,-500.0,0.00016438,2]
[396587890,1765061449910,-150.655292,0.00016438,2]
[396587891,1765061449919,-500.0,0.00016438,2]
[396587892,1765061449929,-2571.46,0.00016438,2]
[396587893,1765061449938,-150.655292,0.00016438,2]
[396587894,1765061449948,-150.655292,0.00016438,2]
[396587895,1765061449958,-150.655292,0.00016438,2]
[396587896,1765061449967,-150.655292,0.00016438,2]
[396587897,1765061449976,-150.655292,0.00016438,2]
[396587898,1765061449986,-500.0,0.00016438,2]
[396587899,1765061449995,-500.0,0.00016438,2]
[396587900,1765061450005,-2258.19,0.00016438,2]
[396587901,1765061450015,-500.0,0.00016438,2]
[396587902,1765061450025,-500.0,0.00016438,2]
[396587903,1765061450035,-500.0,0.00016438,2]
[396587904,1765061450044,-1751.68,0.00016438,2]
[396587905,1765061450053,-2191.74,0.00016438,2]
[396587906,1765061450063,-500.0,0.00016438,2]
[396587907,1765061450073,-500.0,0.00016438,2]
[396587908,1765061450083,-2071.18,0.00016438,2]
[396587909,1765061450094,-636.3,0.00016438,2]
[396587910,1765061450103,-541.19368772,0.00016438,2]
[396587911,1765061450112,-514.8,0.00016438,2]
[396587912,1765061450122,-500.0,0.00016438,2]
[396587913,1765061450133,-2061.86,0.00016438,2]
[396587914,1765061450145,-530.8,0.00016438,2]
[396587915,1765061450155,-500.0,0.00016438,2]
[396587916,1765061450164,-500.0,0.00016438,2]
[396587917,1765061450173,-500.0,0.00016438,2]
[396587918,1765061450182,-500.0,0.00016438,2]
[396587919,1765061450191,-500.0,0.00016438,2]
[396587920,1765061450200,-500.0,0.00016438,2]
[396587921,1765061450209,-500.0,0.00016438,2]
[396587922,1765061450218,-500.0,0.00016438,2]
[396587923,1765061450227,-500.0,0.00016438,2]
[396587924,1765061450237,-1990.47,0.00016438,2]
[396587925,1765061450248,-500.0,0.00016438,2]
[396587926,1765061450257,-613.78,0.00016438,2]
[396587927,1765061450266,-192.74475342,0.00016438,2]
[396587928,1765061450275,-518.5,0.00016438,2]
[396587929,1765061450285,-966.0,0.00016473,2]
[396587930,1765061450296,-2819.32438274,0.00016477,2]
[396587931,1765061450306,-157.13786927,0.00016537,2]
[396587932,1765061450317,-2819.32438274,0.00016561,2]
[396587933,1765061450327,-602.27919575,0.00016598,2]
[396587934,1765061450337,-2819.32438274,0.00016646,2]
[396587935,1765061450346,-4455.90560117,0.0001666,2]
[396587936,1765061450357,-500.0,0.00016673,2]
[396587937,1765061450366,-2023.4543618,0.00016678,2]
[396587938,1765061450375,-1000.0,0.000167,2]
[396587939,1765061450385,-180.23490756,0.00016709,2]
[396587940,1765061450394,-399.41219931,0.00016711,2]
[396587941,1765061450403,-784.46,0.00016711,2]
[396587942,1765061450413,-784.46,0.00016711,2]
[396587943,1765061450422,-500.0,0.00016712,2]
[396587944,1765061450431,-500.0,0.00016712,2]
[396587945,1765061450442,-500.0,0.00016712,2]
[396587946,1765061450452,-1840.85,0.00016712,2]
[396587947,1765061450461,-500.0,0.00016712,2]
[396587948,1765061450471,-544.02,0.00016712,2]
[396587949,1765061450480,-500.0,0.00016712,2]
[396587950,1765061450489,-500.0,0.00016712,2]
[396587951,1765061450499,-1758.67,0.00016712,2]
[396587952,1765061450508,-500.0,0.00016712,2]
[396587953,1765061450517,-500.0,0.00016712,2]
[396587954,1765061450526,-500.0,0.00016712,2]
[396587955,1765061450535,-500.0,0.00016712,2]
[396587956,1765061450545,-500.0,0.00016712,2]
[396587957,1765061450555,-1875.86,0.00016712,2]
[396587958,1765061450565,-526.28,0.00016712,2]
[396587959,1765061450575,-500.0,0.00016712,2]
[396587960,1765061450584,-241.58904581,0.00016712,2]
[396587961,1765061450595,-500.0,0.00016712,2]
[396587962,1765061450604,-792.25,0.00016712,2]
[396587963,1765061450613,-500.0,0.00016712,2]
[396587964,1765061450622,-500.0,0.00016712,2]
[396587965,1765061450631,-587.44,0.00016712,2]
[396587966,1765061450639,-500.0,0.00016712,2]
[396587967,1765061450648,-500.0,0.00016712,2]
[396587968,1765061450658,-500.0,0.00016712,2]
[396587969,1765061450667,-500.0,0.00016712,2]
[396587970,1765061450676,-500.0,0.00016712,2]
[396587971,1765061450685,-500.0,0.00016712,2]
[396587972,1765061450694,-2068.54,0.00016712,2]
[396587973,1765061450703,-500.0,0.00016712,2]
[396587974,1765061450713,-2058.02,0.00016712,2]
[396587975,1765061450722,-500.0,0.00016712,2]
[396587976,1765061450731,-500.0,0.00016712,2]
[396587977,1765061450740,-500.0,0.00016712,2]
[396587978,1765061450749,-500.0,0.00016712,2]
[396587979,1765061450758,-500.0,0.00016712,2]
[396587980,1765061450767,-500.0,0.00016712,2]
[396587981,1765061450776,-2588.95,0.00016712,2]
[396587982,1765061450785,-500.0,0.00016712,2]
[396587983,1765061450794,-500.0,0.00016712,2]
[396587984,1765061450803,-500.0,0.00016712,2]
[396587985,1765061450812,-500.0,0.00016712,2]
[396587986,1765061450821,-500.0,0.00016712,2]
[396587987,1765061450830,-2442.43,0.00016712,2]
[396587988,1765061450839,-500.0,0.00016712,2]
[396587989,1765061450848,-500.0,0.00016712,2]
[396587990,1765061450857,-500.0,0.00016712,2]
[396587991,1765061450866,-500.0,0.00016712,2]
[396587992,1765061450875,-2143.19,0.00016712,2]
[396587993,1765061450884,-540.25676328,0.00016712,2]
[396587994,1765061450892,-506.87204081,0.00016712,2]
[396587995,1765061450901,-500.0,0.00016712,2]
[396587996,1765061450910,-505.13232369,0.00016712,2]
[396587997,1765061450918,-504.59827623,0.00016712,2]
[396587998,1765061450927,-500.0,0.00016712,2]
[396587999,1765061450935,-500.0,0.00016712,2]
[396588000,1765061450944,-500.0,0.00016712,2]
[396588001,1765061450953,-500.0,0.00016712,2]
[396588002,1765061450962,-500.0,0.00016712,2]
[396588003,1765061450971,-500.0,0.00016712,2]
[396588004,1765061450980,-500.0,0.00016712,2]
[396588005,1765061450990,-500.0,0.00016712,2]
[396588006,1765061451000,-2306.12,0.00016712,2]
[396588007,1765061451009,-500.0,0.00016712,2]
[396588008,1765061451021,-500.0,0.00016712,2]
[396588009,1765061451031,-500.0,0.00016712,2]
[396588010,1765061451040,-500.0,0.00016712,2]
[396588011,1765061451050,-500.0,0.00016712,2]
[396588012,1765061451060,-500.0,0.00016712,2]
[396588013,1765061451070,-500.0,0.00016712,2]
[396588014,1765061451082,-500.0,0.00016712,2]
[396588015,1765061451093,-500.0,0.00016712,2]
[396588016,1765061451103,-500.0,0.00016712,2]
[396588017,1765061451112,-500.0,0.00016712,2]
[396588018,1765061451123,-500.0,0.00016712,2]
[396588019,1765061451132,-500.0,0.00016712,2]
[396588020,1765061451141,-1676.21,0.00016712,2]
[396588021,1765061451151,-2224.65,0.00016712,2]
[396588022,1765061451160,-500.0,0.00016712,2]
[396588023,1765061451169,-781.2,0.00016712,2]
[396588024,1765061451179,-500.0,0.00016712,2]
[396588025,1765061451190,-500.0,0.00016712,2]
[396588026,1765061451199,-500.0,0.00016712,2]
[396588027,1765061451210,-500.0,0.00016712,2]
[396588028,1765061451221,-992.68,0.00016712,2]
[396588029,1765061451232,-500.0,0.00016712,2]
[396588030,1765061451248,-500.0,0.00016712,2]
[396588031,1765061451259,-500.0,0.00016712,2]
[396588032,1765061451271,-500.0,0.00016712,2]
[396588033,1765061451282,-500.0,0.00016712,2]
[396588034,1765061451291,-500.0,0.00016712,2]
[396588035,1765061451301,-204.02956509,0.00016712,2]
[396588036,1765061451311,-500.0,0.00016712,2]
[396588037,1765061451322,-500.0,0.00016712,2]
[396588038,1765061451332,-962.2,0.00016712,2]
[396588039,1765061451341,-500.0,0.00016712,2]
[396588040,1765061451350,-500.0,0.00016712,2]
[396588041,1765061451359,-373.90596117,0.00016712,2]
[396588042,1765061451368,-500.0,0.00016712,2]
[396588043,1765061451377,-500.0,0.00016712,2]
[396588044,1765061451387,-500.0,0.00016712,2]
[396588045,1765061451397,-2009.3,0.00016712,2]
[396588046,1765061451406,-536.97,0.00016712,2]
[396588047,1765061451415,-1173.33,0.00016712,2]
[396588048,1765061451425,-500.0,0.00016712,2]
[396588049,1765061451435,-500.0,0.00016712,2]
[396588050,1765061451444,-500.0,0.00016712,2]
[396588051,1765061451454,-1960.1,0.00016712,2]
[396588052,1765061451464,-500.0,0.00016712,2]
[396588053,1765061451473,-500.0,0.00016712,2]
[396588054,1765061451483,-502.73114491,0.00016712,2]
[396588055,1765061451493,-500.0,0.00016712,2]
[396588056,1765061451502,-500.0,0.00016712,2]
[396588057,1765061451512,-500.0,0.00016712,2]
[396588058,1765061451521,-500.0,0.00016712,2]
[396588059,1765061451531,-886.94,0.00016712,2]
[396588060,1765061451542,-2032.05,0.00016712,2]
[396588061,1765061451552,-541.47587758,0.00016712,2]
[396588062,1765061451562,-2151.78,0.00016712,2]
[396588063,1765061451572,-500.0,0.00016712,2]
[396588064,1765061451582,-500.0,0.00016712,2]
[396588065,1765061451592,-500.0,0.00016712,2]
[396588066,1765061451602,-1404.24,0.00016712,2]
[396588067,1765061451613,-602.88095819,0.00016712,2]
[396588068,1765061451622,-500.0,0.00016712,2]
[396588069,1765061451632,-500.0,0.00016712,2]
[396588070,1765061451642,-511.31933018,0.00016712,2]
[396588071,1765061451652,-500.0,0.00016712,2]
[396588072,1765061451662,-1853.99,0.00016712,2]
[396588073,1765061451672,-500.0,0.00016712,2]
[396588074,1765061451682,-500.0,0.00016712,2]
[396588075,1765061451691,-1580.73,0.00016712,2]
[396588076,1765061451701,-500.0,0.00016712,2]
[396588077,1765061451711,-500.0,0.00016712,2]
[396588078,1765061451721,-500.0,0.00016712,2]
[396588079,1765061451730,-500.0,0.00016712,2]
[396588080,1765061451740,-500.0,0.00016712,2]
[396588081,1765061451750,-500.0,0.00016712,2]
[396588082,1765061451760,-500.0,0.00016712,2]
[396588083,1765061451770,-500.0,0.00016712,2]
[396588084,1765061451780,-609.68,0.00016712,2]
[396588085,1765061451790,-500.0,0.00016712,2]
[396588086,1765061451800,-500.0,0.00016712,2]
[396588087,1765061451810,-500.0,0.00016712,2]
[396588088,1765061451820,-500.0,0.00016712,2]
[396588089,1765061451829,-500.0,0.00016712,2]
[396588090,1765061451839,-500.0,0.00016712,2]
[396588091,1765061451851,-500.0,0.00016712,2]
[396588092,1765061451861,-500.0,0.00016712,2]
[396588093,1765061451871,-500.0,0.00016712,2]
[396588094,1765061451881,-3163.67,0.00016712,2]
[396588095,1765061451892,-500.0,0.00016712,2]
[396588096,1765061451907,-2037.51,0.00016712,2]
[396588097,1765061451919,-500.0,0.00016712,2]
[396588098,1765061451929,-500.0,0.00016712,2]
[396588099,1765061451940,-500.0,0.00016712,2]
[396588100,1765061451952,-893.45,0.00016712,2]
[396588101,1765061451962,-500.0,0.00016712,2]
[396588102,1765061451975,-500.0,0.00016712,2]
[396588103,1765061451988,-500.0,0.00016712,2]
[396588104,1765061451998,-500.0,0.00016712,2]
[396588105,1765061452009,-500.0,0.00016712,2]
[396588106,1765061452020,-847.41,0.00016712,2]
[396588107,1765061452030,-500.0,0.00016712,2]
[396588108,1765061452041,-500.0,0.00016712,2]
[396588109,1765061452051,-500.0,0.00016712,2]
[396588110,1765061452061,-500.0,0.00016712,2]
[396588111,1765061452073,-500.0,0.00016712,2]
[396588112,1765061452083,-500.0,0.00016712,2]
[396588113,1765061452092,-500.0,0.00016712,2]
[396588114,1765061452102,-727.2,0.00016712,2]
[396588115,1765061452111,-500.0,0.00016712,2]
[396588116,1765061452121,-500.0,0.00016712,2]
[396588117,1765061452131,-2000.11,0.00016712,2]
[396588118,1765061452141,-500.0,0.00016712,2]
[396588119,1765061452150,-500.0,0.00016712,2]
[396588120,1765061452161,-500.0,0.00016712,2]
[396588121,1765061452171,-500.0,0.00016712,2]
[396588122,1765061452181,-540.13,0.00016712,2]
[396588123,1765061452191,-500.0,0.00016712,2]
[396588124,1765061452200,-500.0,0.00016712,2]
[396588125,1765061452211,-500.0,0.00016712,2]
[396588126,1765061452221,-500.0,0.00016712,2]
[396588127,1765061452231,-2561.34,0.00016712,2]
[396588128,1765061452244,-500.0,0.00016712,2]
[396588129,1765061452254,-268.4710365,0.00016712,2]
[396588130,1765061452264,-500.0,0.00016712,2]